fUSD/lending_fUSD_20251120
["ID","MTS","AMOUNT","RATE_DAILY","PERIOD"]
[394494335,1763632309368,-1765.66552541,0.000181,2]
[394494336,1763632309377,-979.38,0.00018158,2]
[394494337,1763632309389,-767.04659,0.0001819,2]
[394494338,1763632309399,-2484.0,0.00018252,2]
[394494339,1763632309408,-168.0,0.00018268,2]
[394494340,1763632309418,-168.0,0.00018295,2]
[394494341,1763632309427,-166.66,0.00018335,2]
[394494342,1763632309437,-300.0,0.00018355,2]
[394494343,1763632309446,-151.0,0.00018356,2]
[394494344,1763632309456,-151.0,0.00018356,2]
[394494345,1763632309465,-151.0,0.00018356,2]
[394494346,1763632309474,-87785.49,0.00018356,2]
[394494347,1763632309485,-168.0,0.00018373,2]
[394494348,1763632309494,-300.0,0.0001838,2]
[394494349,1763632309503,-2484.0,0.00018424,2]
[394494350,1763632309513,-979.38,0.00018432,2]
[394494351,1763632309522,-1600.0,0.00018435,2]
[394494352,1763632309532,-767.04658,0.0001844,2]
[394494353,1763632309541,-5888.0,0.00018468,2]
[394494354,1763632309551,-181.53,0.00018473,2]
[394494355,1763632309562,-4417.0,0.00018477,2]
[394494356,1763632309572,-4417.0,0.00018496,2]
[394494357,1763632309582,-806.65018386,0.00018521,2]
[394494358,1763632309592,-1000.0,0.00018521,2]
[394494359,1763632309601,-1067.21962,0.00018521,2]
[394494360,1763632309610,-1000.0,0.00018521,2]
[394494361,1763632309620,-500.0,0.00018521,2]
[394494362,1763632309630,-1000.0,0.00018521,2]
[394494363,1763632309640,-1000.0,0.00018521,2]
[394494364,1763632309649,-1000.0,0.00018521,2]
[394494365,1763632309659,-1000.0,0.00018521,2]
[394494366,1763632309668,-500.0,0.00018521,2]
[394494367,1763632309678,-1000.0,0.00018521,2]
[394494368,1763632309689,-1000.0,0.00018521,2]
[394494369,1763632309699,-1000.0,0.00018521,2]
[394494370,1763632309708,-501.84520062,0.00018521,2]
[394494371,1763632309718,-1000.0,0.00018521,2]
[394494372,1763632309727,-1000.0,0.00018521,2]
[394494373,1763632309738,-505.0755916,0.00018521,2]
[394494374,1763632309753,-1000.0,0.00018521,2]
[394494375,1763632309764,-562.46189258,0.00018521,2]
[394494376,1763632309774,-1000.0,0.00018521,2]
[394494377,1763632309789,-2500.0,0.00018564,2]
[394494378,1763632309798,-2000.0,0.000186,2]
[394494379,1763632309810,-2484.0,0.00018682,2]
[394494380,1763632309820,-767.04659,0.0001869,2]
[394494381,1763632309829,-979.38,0.00018706,2]
[394494382,1763632309839,-1000.0,0.0001876,2]
[394494383,1763632309850,-150.56,0.000188,2]
[394494384,1763632309861,-150.56,0.000188,2]
[394494385,1763632309870,-150.56,0.000188,2]
[394494386,1763632309880,-150.56,0.000188,2]
[394494387,1763632309889,-150.56,0.000188,2]
[394494388,1763632309898,-150.56,0.000188,2]
[394494389,1763632309908,-150.56,0.000188,2]
[394494390,1763632309917,-150.56,0.000188,2]
[394494391,1763632309927,-150.56,0.000188,2]
[394494392,1763632309936,-150.56,0.000188,2]
[394494393,1763632309946,-150.56,0.000188,2]
[394494394,1763632309956,-150.56,0.000188,2]
[394494395,1763632309966,-150.56,0.000188,2]
[394494396,1763632309977,-150.56,0.000188,2]
[394494398,1763632309986,-150.56,0.000188,2]
[394494399,1763632309996,-150.56,0.000188,2]
[394494400,1763632310005,-150.56,0.000188,2]
[394494401,1763632310015,-150.56,0.000188,2]
[394494402,1763632310025,-150.56,0.000188,2]
[394494403,1763632310036,-150.56,0.000188,2]
[394494404,1763632310046,-150.56,0.000188,2]
[394494405,1763632310058,-150.56,0.000188,2]
[394494406,1763632310068,-150.56,0.000188,2]
[394494407,1763632310079,-150.56,0.000188,2]
[394494408,1763632310089,-150.56,0.000188,2]
[394494409,1763632310099,-150.56,0.000188,2]
[394494410,1763632310110,-150.56,0.000188,2]
[394494411,1763632310121,-150.56,0.000188,2]
[394494412,1763632310131,-150.56,0.000188,2]
[394494413,1763632310141,-150.56,0.000188,2]
[394494414,1763632310150,-150.56,0.000188,2]
[394494415,1763632310161,-150.56,0.000188,2]
[394494416,1763632310170,-150.56,0.000188,2]
[394494417,1763632310180,-150.56,0.000188,2]
[394494418,1763632310189,-150.56,0.000188,2]
[394494419,1763632310199,-150.56,0.000188,2]
[394494420,1763632310208,-150.56,0.000188,2]
[394494421,1763632310219,-1401.66,0.00018811,2]
[394494422,1763632310228,-700.83,0.00018811,2]
[394494423,1763632310238,-700.83,0.00018811,2]
[394494424,1763632310247,-700.83,0.00018811,2]
[394494425,1763632310257,-700.83,0.00018811,2]
[394494426,1763632310266,-701.05,0.00018811,2]
[394494427,1763632310275,-701.05,0.00018811,2]
[394494428,1763632310285,-239.67449913,0.00018844,2]
[394494429,1763632310295,-166.66,0.0001887,2]
[394494430,1763632310305,-767.04659,0.0001894,2]
[394494431,1763632310315,-169.6,0.00018959,2]
[394494432,1763632310324,-179.34,0.00018959,2]
[394494433,1763632310334,-169.6,0.00018959,2]
[394494434,1763632310343,-169.6,0.00018959,2]
[394494435,1763632310354,-979.38,0.0001898,2]
[394494436,1763632310364,-300.0,0.00018999,2]
[394494437,1763632310374,-408.15433804,0.00019,2]
[394494438,1763632310383,-73958.40011427,0.00019,2]
[394494439,1763632310393,-73958.40011427,0.00019,2]
[394494440,1763632310403,-543.7287466,0.00019,2]
[394494441,1763632310412,-543.7287466,0.00019,2]
[394494442,1763632310421,-300.0,0.00019,2]
[394494443,1763632310430,-870.84191195,0.00019,2]
[394494444,1763632310439,-1487.452036,0.00019068,2]
[394494445,1763632310449,-364.03566342,0.00019068,2]
[394494446,1763632310459,-1500.0,0.00019068,2]
[394494447,1763632310470,-1500.0,0.00019068,2]
[394494448,1763632310485,-363.20487485,0.00019068,2]
[394494449,1763632310494,-1514.21300372,0.00019068,2]
[394494450,1763632310503,-1047.27733567,0.00019068,2]
[394494451,1763632310513,-1500.0,0.00019068,2]
[394494452,1763632310523,-1500.0,0.00019068,2]
[394494453,1763632310532,-1500.0,0.00019068,2]
[394494454,1763632310542,-413.82632721,0.00019068,2]
[394494455,1763632310552,-1500.0,0.00019068,2]
[394494456,1763632310563,-1500.0,0.00019068,2]
[394494457,1763632310573,-3000.0,0.00019112,2]
[394494458,1763632310583,-3000.0,0.00019178,2]
[394494459,1763632310592,-3017.57929967,0.00019178,7]
[394494460,1763632310602,-2338.8,0.00019178,2]
[394494461,1763632310612,-151.0,0.00019178,2]
[394494462,1763632310622,-151.0,0.00019178,2]
[394494463,1763632310633,-151.0,0.00019178,2]
[394494464,1763632310643,-151.0,0.00019178,2]
[394494465,1763632310653,-151.0,0.00019178,2]
[394494466,1763632310663,-151.0,0.00019178,2]
[394494467,1763632310674,-151.0,0.00019178,2]
[394494468,1763632310684,-151.0,0.00019178,2]
[394494469,1763632310693,-151.0,0.00019178,2]
[394494470,1763632310703,-151.0,0.00019178,2]
[394494471,1763632310713,-151.0,0.00019178,2]
[394494472,1763632310723,-252.868166,0.00019178,2]
[394494473,1763632310733,-200.0,0.00019178,2]
[394494474,1763632310744,-150.0,0.00019236,5]
[394494475,1763632310754,-979.38,0.00019254,2]
[394494476,1763632310764,-587.0,0.00019388,2]
[394494477,1763632310775,-587.0,0.00019388,2]
[394494478,1763632310788,-181.53,0.00019397,2]
[394494479,1763632310798,-1000.0,0.00019438,2]
[394494480,1763632310810,-162.95436659,0.00019522,2]
[394494481,1763632310821,-979.38,0.00019528,2]
[394494482,1763632310832,-1000.0,0.00019551,2]
[394494483,1763632310843,-2351.0,0.00019583,2]
[394494484,1763632310854,-2000.0,0.00019616,2]
[394494485,1763632310868,-2000.0,0.00019616,2]
[394494486,1763632310878,-2000.0,0.00019616,2]
[394494487,1763632310888,-2145.37914128,0.00019616,2]
[394494488,1763632310898,-2000.0,0.00019616,2]
[394494489,1763632310908,-1467.67390606,0.00019616,2]
[394494490,1763632310918,-2000.0,0.00019616,2]
[394494491,1763632310928,-2403.61162503,0.0001966,2]
[394494492,1763632310938,-151.00122179,0.00019689,5]
[394494493,1763632310948,-10071.6,0.00019726,2]
[394494494,1763632310957,-700.83,0.0001977,2]
[394494495,1763632310967,-700.83,0.0001977,2]
[394494496,1763632310977,-700.83,0.0001977,2]
[394494497,1763632310987,-979.38,0.00019802,2]
[394494498,1763632310996,-400.0,0.00019863,2]
[394494499,1763632311006,-4883.47298272,0.000199,3]
[394494500,1763632311016,-150.0,0.00019973,2]
[394494501,1763632311025,-300.0,0.00019999,2]
[394494502,1763632311034,-18636.0,0.0002,7]
[394494503,1763632311044,-7850.63191395,0.0002,2]
[394494504,1763632311054,-205381.94856455,0.0002,5]
[394494505,1763632311064,-3950.0,0.0002,2]
[394494506,1763632311074,-7237.29089092,0.0002,2]
[394494507,1763632311085,-8743.10760748,0.0002,2]
[394494508,1763632311094,-396.0,0.0002,2]
[394494509,1763632311104,-64979.58767524,0.0002,2]
[394494510,1763632311114,-59638.2356143,0.0002,5]
[394494511,1763632311124,-151.0,0.0002,2]
[394494512,1763632311134,-151.0,0.0002,2]
[394494513,1763632311143,-151.0,0.0002,2]
[394494514,1763632311153,-151.0,0.0002,2]
[394494515,1763632311164,-151.0,0.0002,2]
[394494516,1763632311174,-151.0,0.0002,2]
[394494517,1763632311185,-151.0,0.0002,2]
[394494518,1763632311195,-7450.88361091,0.0002001,2]
[394494519,1763632311205,-2134.6517187,0.00020025,2]
[394494520,1763632311216,-979.38,0.00020076,2]
[394494521,1763632311227,-1000.0,0.00020116,2]
[394494522,1763632311237,-217.06,0.00020118,2]
[394494523,1763632311247,-2500.0,0.00020164,2]
[394494524,1763632311257,-2500.0,0.00020164,2]
[394494525,1763632311268,-2500.0,0.00020164,2]
[394494526,1763632311278,-2500.0,0.00020164,2]
[394494527,1763632311288,-2500.0,0.00020164,2]
[394494528,1763632311299,-530.99,0.00020187,2]
[394494529,1763632311310,-181.53,0.0002032,2]
[394494530,1763632311321,-979.38,0.0002035,2]
[394494531,1763632311332,-1600.0,0.00020483,2]
[394494532,1763632311341,-250.0,0.00020521,2]
[394494533,1763632311350,-21357.72,0.00020548,2]
[394494534,1763632311360,-190.3,0.00020548,2]
[394494535,1763632311371,-600.0,0.00020548,2]
[394494536,1763632311382,-515.9808025,0.00020558,2]
[394494537,1763632311393,-500.0,0.00020558,2]
[394494538,1763632311403,-500.0,0.00020558,2]
[394494539,1763632311414,-600.29489185,0.00020558,2]
[394494540,1763632311424,-575.0,0.00020611,2]
[394494541,1763632311435,-609.0,0.00020611,2]
[394494542,1763632311446,-2226.753,0.00020611,2]
[394494543,1763632311456,-1319.0,0.00020611,2]
[394494544,1763632311467,-1600.0,0.00020611,2]
[394494545,1763632311477,-822.0,0.00020611,2]
[394494546,1763632311487,-907.0,0.00020611,2]
[394494547,1763632311497,-1191.0,0.00020611,2]
[394494548,1763632311507,-794.0,0.00020611,2]
[394494549,1763632311518,-1256.0,0.00020611,2]
[394494550,1763632311529,-705.0,0.00020611,2]
[394494551,1763632311541,-150.0,0.00020611,2]
[394494552,1763632311552,-1605.0,0.00020611,2]
[394494553,1763632311563,-2990.867,0.00020611,2]
[394494554,1763632311573,-979.48586912,0.00020624,2]
[394494555,1763632311584,-151.15,0.00020685,2]
[394494556,1763632311594,-150.0,0.00020685,2]
[394494557,1763632311604,-150.0,0.00020685,2]
[394494558,1763632311615,-150.0,0.00020685,2]
[394494559,1763632311625,-150.0,0.00020685,2]
[394494560,1763632311636,-150.0,0.00020685,2]
[394494561,1763632311647,-150.0,0.00020685,2]
[394494562,1763632311657,-150.0,0.00020685,2]
[394494563,1763632311668,-758.95361185,0.000207,2]
[394494564,1763632311679,-605.93525861,0.00020712,2]
[394494565,1763632311690,-237.69551469,0.00020712,2]
[394494566,1763632311700,-3000.0,0.00020712,2]
[394494567,1763632311710,-3000.0,0.00020712,2]
[394494568,1763632311721,-550.26652093,0.00020712,2]
[394494569,1763632311732,-150.0,0.00020758,2]
[394494570,1763632311742,-150.0,0.00020758,2]
[394494571,1763632311753,-150.0,0.00020758,2]
[394494572,1763632311763,-150.0,0.00020758,2]
[394494573,1763632311774,-150.0,0.00020758,2]
[394494574,1763632311789,-150.0,0.00020758,2]
[394494575,1763632311800,-1000.0,0.00020795,2]
[394494576,1763632311810,-476.3051798,0.00020805,2]
[394494577,1763632311822,-9761.95411415,0.00021,2]
[394494578,1763632311833,-32110.6177234,0.00021,2]
[394494579,1763632311844,-3000.0,0.00021,2]
[394494580,1763632312032,-350.0,0.00021,2]
[394494581,1763632312042,-26197.0,0.00021045,2]
[394494582,1763632312051,-12425.53,0.00021068,2]
[394494583,1763632312062,-256.26401383,0.00021068,2]
[394494584,1763632312073,-1000.0,0.00021106,2]
[394494585,1763632312089,-1000.0,0.00021106,2]
[394494586,1763632312105,-823.0,0.00021193,2]
[394494587,1763632312115,-823.0,0.00021193,2]
[394494588,1763632312125,-800.0,0.00021233,2]
[394494589,1763632312134,-181.53,0.00021244,2]
[394494590,1763632312145,-2074.09153838,0.0002126,2]
[394494591,1763632312155,-3500.0,0.0002126,2]
[394494592,1763632312165,-162.95436659,0.00021296,2]
[394494593,1763632312175,-1100.85,0.00021425,2]
[394494594,1763632312184,-550.68,0.00021425,2]
[394494595,1763632312194,-550.68,0.00021425,2]
[394494596,1763632312204,-1099.86,0.00021425,2]
[394494597,1763632312214,-20386.46603304,0.000215,2]
[394494598,1763632312223,-5199.73286916,0.000215,2]
[394494599,1763632312233,-151.0,0.000215,2]
[394494600,1763632312243,-1000.0,0.00021506,2]
[394494601,1763632312253,-3292.0,0.00021513,2]
[394494602,1763632312263,-1500.0,0.00021654,2]
[394494603,1763632312272,-1500.0,0.00021654,2]
[394494604,1763632312282,-4000.0,0.00021808,2]
[394494605,1763632312292,-5000.0,0.00021918,2]
[394494606,1763632312301,-1000.0,0.00021918,2]
[394494607,1763632312312,-150.0,0.00021918,2]
[394494608,1763632312321,-152.25465967,0.00021918,2]
[394494609,1763632312331,-150.0,0.00021945,2]
[394494610,1763632312341,-150.0,0.00021973,2]
[394494611,1763632312350,-4114.52509585,0.00022,2]
[394494612,1763632312360,-160.97,0.00022,2]
[394494613,1763632312369,-151.0,0.00022,2]
[394494614,1763632312378,-35341.69761713,0.00022,4]
[394494615,1763632312387,-6951.68,0.00022,7]
[394494616,1763632312397,-170.0,0.00022,2]
[394494617,1763632312407,-660.58,0.00022,2]
[394494618,1763632312417,-150.0,0.00022,2]
[394494619,1763632312427,-201.8540318,0.00022028,2]
[394494620,1763632312437,-490.6353653,0.000221,2]
[394494621,1763632312447,-181.53,0.00022168,2]
[394494622,1763632312457,-406.65818674,0.00022202,2]
[394494623,1763632312467,-563.73370059,0.00022202,2]
[394494624,1763632312477,-2000.0,0.000223,2]
[394494625,1763632312487,-3823.03968539,0.00022356,2]
[394494626,1763632312497,-217.06,0.00022388,2]
[394494627,1763632312507,-35228.9405579,0.000225,2]
[394494628,1763632312516,-1600.0,0.00022531,2]
[394494629,1763632312526,-250.17388649,0.00022603,2]
[394494630,1763632312536,-519.03896253,0.0002271,2]
[394494631,1763632312546,-814.74,0.00022851,2]
[394494632,1763632312556,-19240.60239554,0.000229,2]
[394494633,1763632312566,-5000.0,0.00023,5]
[394494634,1763632312575,-999.75921853,0.00023,2]
[394494635,1763632312585,-400.0,0.00023,2]
[394494636,1763632312595,-162.95436659,0.00023071,2]
[394494637,1763632312605,-181.53,0.00023091,2]
[394494638,1763632312614,-1152.0,0.00023166,2]
[394494639,1763632312624,-1152.0,0.00023166,2]
[394494640,1763632312633,-591.9065111,0.00023199,2]
[394494641,1763632312643,-51761.55818494,0.000232,2]
[394494642,1763632312653,-151.0,0.000232,2]
[394494643,1763632312663,-151.0,0.000232,2]
[394494644,1763632312672,-151.0,0.000232,2]
[394494645,1763632312682,-151.0,0.000232,2]
[394494646,1763632312691,-151.0,0.000232,2]
[394494647,1763632312701,-151.0,0.000232,2]
[394494648,1763632312711,-151.0,0.000232,2]
[394494649,1763632312721,-1000.0,0.00023461,2]
[394494650,1763632312731,-575.0,0.00023611,2]
[394494651,1763632312741,-609.0,0.00023611,2]
[394494652,1763632312750,-1319.0,0.00023611,2]
[394494653,1763632312760,-1600.0,0.00023611,2]
[394494654,1763632312769,-822.0,0.00023611,2]
[394494655,1763632312784,-907.0,0.00023611,2]
[394494656,1763632312794,-1191.0,0.00023611,2]
[394494657,1763632312803,-794.0,0.00023611,2]
[394494658,1763632312813,-1256.0,0.00023611,2]
[394494659,1763632312826,-705.0,0.00023611,2]
[394494660,1763632312835,-1605.0,0.00023611,2]
[394494661,1763632312845,-4609.0,0.00023633,2]
[394494662,1763632312856,-150.0,0.00023758,2]
[394494663,1763632312866,-150.0,0.00023758,2]
[394494664,1763632312875,-150.0,0.00023758,2]
[394494665,1763632312885,-150.0,0.00023758,2]
[394494666,1763632312896,-3600.0,0.00024,2]
[394494667,1763632312905,-16080.67589322,0.00024,2]
[394494668,1763632312915,-6951.68,0.00024,7]
[394494669,1763632312925,-181.53,0.00024015,2]
[394494670,1763632312935,-479.55759781,0.00024404,2]
[394494671,1763632312944,-660.58,0.00024505,2]
[394494672,1763632312954,-1600.0,0.00024579,2]
[394494673,1763632312964,-166.10550948,0.0002465,2]
[394494674,1763632312974,-156.0,0.00024658,2]
[394494675,1763632312984,-1000.0,0.00024658,2]
[394494676,1763632312993,-989.3,0.00024658,30]
[394494677,1763632313002,-738.71,0.00024658,2]
[394494678,1763632313012,-151.0,0.00024658,7]
[394494679,1763632313021,-151.0,0.00024658,7]
[394494680,1763632313031,-151.0,0.00024658,7]
[394494681,1763632313041,-151.0,0.00024658,7]
[394494682,1763632313050,-151.0,0.00024658,7]
[394494683,1763632313060,-151.0,0.00024658,7]
[394494684,1763632313068,-168.33633,0.00024658,7]
[394494685,1763632313078,-151.40489,0.00024658,7]
[394494686,1763632313088,-500.0,0.00024658,2]
[394494687,1763632313098,-500.0,0.00024685,2]
[394494688,1763632313108,-373.83119632,0.00024713,2]
[394494689,1763632313118,-666.0,0.00024799,2]
[394494690,1763632313129,-666.0,0.00024799,2]
[394494691,1763632313137,-179.85957124,0.00024799,10]
[394494692,1763632313147,-666.0,0.00024799,2]
[394494693,1763632313157,-204123.75348,0.000248,3]
[394494694,1763632313167,-162.95436659,0.00024846,2]
[394494695,1763632313176,-676.21188281,0.00024899,2]
[394494696,1763632313186,-716.20976899,0.00024899,2]
[394494697,1763632313196,-73958.40011427,0.000249,2]
[394494698,1763632313205,-600.0,0.000249,9]
[394494699,1763632313215,-150986.849162,0.000249,3]
[394494700,1763632313224,-181.53,0.00024939,2]
[394494701,1763632313234,-150.0,0.00024973,2]
[394494702,1763632313243,-205.43008693,0.00025,2]
[394494703,1763632313252,-1766.81545495,0.00025,2]
[394494704,1763632313261,-360.0,0.00025,2]
[394494705,1763632313271,-3013.4275489,0.00025,2]
[394494706,1763632313280,-7064.24824191,0.00025,2]
[394494707,1763632313290,-1053.50853445,0.00025,2]
[394494708,1763632313300,-165.57413198,0.00025,2]
[394494709,1763632313310,-3380.99818078,0.00025,2]
[394494710,1763632313320,-1102.56336035,0.00025,2]
[394494711,1763632313329,-178.23410065,0.00025,2]
[394494712,1763632313339,-1301.57173487,0.00025,4]
[394494713,1763632313349,-200000.0,0.00025,7]
[394494714,1763632313359,-369.86535997,0.00025,7]
[394494715,1763632313369,-450.0,0.00025,2]
[394494716,1763632313379,-150.0,0.00025,2]
[394494717,1763632313390,-239.67449913,0.00025063,2]
[394494718,1763632313399,-217.06,0.00025065,2]
[394494719,1763632313409,-1613.0,0.00025322,2]
[394494720,1763632313419,-700.0,0.00025322,2]
[394494721,1763632313429,-217.05679733,0.00025472,2]
[394494722,1763632313439,-289.05359102,0.00025521,2]
[394494723,1763632313448,-20128.5998488,0.00025879,2]
[394494724,1763632313458,-800.0,0.00025945,2]
[394494725,1763632313468,-6453.0,0.00025963,2]
[394494726,1763632313478,-594.55427193,0.0002599,2]
[394494727,1763632313488,-4478.07910536,0.00026,2]
[394494728,1763632313498,-4138.65,0.00026,2]
[394494729,1763632313508,-214.31039951,0.00026,2]
[394494730,1763632313518,-161.314944,0.00026,2]
[394494731,1763632313529,-2000.0,0.00026,2]
[394494732,1763632313538,-27217.26913915,0.000264,2]
[394494733,1763632313548,-6951.68,0.000264,7]
[394494734,1763632313558,-575.0,0.00026611,2]
[394494735,1763632313567,-609.0,0.00026611,2]
[394494736,1763632313576,-1319.0,0.00026611,2]
[394494737,1763632313587,-1600.0,0.00026611,2]
[394494738,1763632313597,-822.0,0.00026611,2]
[394494739,1763632313608,-907.0,0.00026611,2]
[394494740,1763632313618,-1191.0,0.00026611,2]
[394494741,1763632313628,-794.0,0.00026611,2]
[394494742,1763632313639,-1256.0,0.00026611,2]
[394494743,1763632313649,-705.0,0.00026611,2]
[394494744,1763632313659,-1605.0,0.00026611,2]
[394494745,1763632313669,-162.95436662,0.00026621,2]
[394494746,1763632313679,-530.99,0.00026676,2]
[394494747,1763632313688,-5000.0,0.00026707,2]
[394494748,1763632313698,-2269.05292783,0.00026715,2]
[394494749,1763632313708,-250.0,0.00027,2]
[394494750,1763632313717,-1023.16519391,0.00027,2]
[394494751,1763632313726,-530.0,0.00027,2]
[394494752,1763632313735,-660.58,0.0002701,7]
[394494753,1763632313745,-256.81215181,0.0002712,7]
[394494754,1763632313754,-150.0,0.0002712,7]
[394494755,1763632313764,-3648.51,0.00027123,2]
[394494756,1763632313774,-150.0,0.00027369,2]
[394494757,1763632313787,-4068.5201596,0.0002739,2]
[394494758,1763632313797,-8037.49767611,0.0002739,2]
[394494759,1763632313806,-738.71,0.00027397,2]
[394494760,1763632313818,-300.0,0.00027397,2]
[394494761,1763632313828,-500.0,0.00027397,5]
[394494762,1763632313838,-1156.91,0.000274,7]
[394494763,1763632313850,-2333.41,0.000274,2]
[394494764,1763632313859,-674.79,0.000274,7]
[394494765,1763632313870,-275.32,0.00027472,2]
[394494766,1763632313885,-213.97,0.00027472,2]
[394494767,1763632313895,-177.5,0.00027472,2]
[394494768,1763632313905,-177.3,0.00027472,2]
[394494769,1763632313915,-199.00686258,0.000275,2]
[394494770,1763632313925,-543.64149333,0.000275,2]
[394494771,1763632313935,-3011.97,0.00027671,2]
[394494772,1763632313945,-2258.0,0.00027679,2]
[394494773,1763632313955,-70587.8284325,0.00028,2]
[394494774,1763632313965,-250164.33982307,0.00028,2]
[394494775,1763632313975,-50335.70227044,0.00028,2]
[394494776,1763632313986,-160.0,0.00028,2]
[394494777,1763632313996,-1506.63653919,0.00028,3]
[394494778,1763632314006,-870.84191195,0.00028,2]
[394494779,1763632314017,-9035.0,0.00028521,2]
[394494780,1763632314027,-173.72585769,0.0002875,2]
[394494781,1763632314037,-17103.39,0.00029,3]
[394494782,1763632314047,-6951.68,0.00029,7]
[394494783,1763632314056,-5054.54274215,0.00029142,2]
[394494784,1763632314066,-1000.0,0.00029159,2]
[394494785,1763632314077,-179.58583683,0.00029212,30]
[394494786,1763632314087,-674.79,0.000293,7]
[394494787,1763632314096,-196.13950529,0.00029353,30]
[394494788,1763632314107,-10747.9782353,0.000295,7]
[394494789,1763632314117,-2333.41,0.000295,2]
[394494790,1763632314127,-660.58,0.00029515,30]
[394494791,1763632314136,-575.0,0.00029611,2]
[394494792,1763632314147,-609.0,0.00029611,2]
[394494793,1763632314157,-1319.0,0.00029611,2]
[394494794,1763632314167,-1600.0,0.00029611,2]
[394494795,1763632314177,-822.0,0.00029611,2]
[394494796,1763632314187,-907.0,0.00029611,2]
[394494797,1763632314197,-1191.0,0.00029611,2]
[394494798,1763632314206,-794.0,0.00029611,2]
[394494799,1763632314216,-1256.0,0.00029611,2]
[394494800,1763632314226,-705.0,0.00029611,2]
[394494801,1763632314236,-1605.0,0.00029611,2]
[394494802,1763632314245,-2000.0,0.000297,2]
[394494803,1763632314256,-989.3,0.00029704,30]
[394494804,1763632314265,-78048.59522551,0.000299,2]
[394494805,1763632314275,-234.61329235,0.0002999,2]
[394494806,1763632314285,-19658.64356832,0.0003,2]
[394494807,1763632314296,-23607.16683396,0.0003,2]
[394494808,1763632314305,-1796.97195717,0.0003,2]
[394494809,1763632314316,-161.18529402,0.0003,2]
[394494810,1763632314326,-500.0,0.0003,7]
[394494811,1763632314336,-151.0,0.0003,7]
[394494812,1763632314346,-300.0,0.0003,30]
[394494813,1763632314356,-60720.3378841,0.0003,2]
[394494814,1763632314366,-650.0,0.00030057,14]
[394494815,1763632314376,-1156.91,0.000301,7]
[394494816,1763632314385,-13699.88786736,0.0003013,2]
[394494817,1763632314395,-5003.41499174,0.0003013,2]
[394494818,1763632314404,-7646.72989661,0.0003013,2]
[394494819,1763632314414,-200.0,0.0003013,2]
[394494820,1763632314424,-1061.62007475,0.0003013,2]
[394494821,1763632314433,-627.01601884,0.0003013,2]
[394494822,1763632314443,-199.53063608,0.0003013,2]
[394494823,1763632314454,-1210.98357649,0.0003013,2]
[394494824,1763632314464,-738.71,0.00030137,2]
[394494825,1763632314474,-150.0,0.00030137,5]
[394494826,1763632314483,-3162.0,0.00030255,2]
[394494827,1763632314493,-674.79,0.000306,30]
[394494828,1763632314502,-1553.92385614,0.0003061,2]
[394494829,1763632314512,-5019.72765839,0.00030619,2]
[394494830,1763632314522,-250.0,0.00030685,5]
[394494831,1763632314532,-1431.76359535,0.000307,2]
[394494832,1763632314541,-2581.90547985,0.0003084,2]
[394494833,1763632314550,-78121.3470609,0.0003095,2]
[394494834,1763632314560,-596.46,0.00031,30]
[394494835,1763632314570,-6951.68,0.000312,7]